fUSD/lending_fUSD_20260625
["ID","MTS","AMOUNT","RATE_DAILY","PERIOD"]
[426389074,1782337663000,456.92,0.00030303,30]
[426389075,1782337671000,509.14,0.00030247,30]
[426389076,1782337672000,297.9,0.00031047,30]
[426389077,1782337672000,407.64,0.000304,30]
[426389078,1782337695000,200.0,0.00030656,30]
[426389079,1782337696000,200.0,0.00030656,30]
[426389080,1782337697000,200.0,0.00030656,30]
[426389081,1782337698000,310.0,0.00030656,30]
[426389082,1782337739000,445.32,0.00030364,30]
[426389083,1782337742000,397.56,0.0003046,30]
[426389084,1782337746000,296.52,0.00031101,30]
[426389085,1782337748000,493.1,0.00030309,30]
[426389086,1782337753000,165.64794186,0.00030775,30]
[426389087,1782337755000,150.0,0.00030656,30]
[426389089,1782337756000,205.0,0.00030656,30]
[426389088,1782337756000,150.0,0.00030656,30]
[426389095,1782337773000,172.11,0.0003125,120]
[426389097,1782337791000,150.311301,0.0003113,45]
[426389098,1782337803000,150.311301,0.0003113,45]
[426389099,1782337812000,420.95,0.00030426,30]
[426389101,1782337817000,465.48,0.00030371,30]
[426389100,1782337817000,376.46,0.0003052,30]
[426389102,1782337822000,293.07,0.00031154,30]
[426389109,1782337831000,-151.0,0.00013593,2]
[426389107,1782337831000,-152.0,0.00013593,2]
[426389108,1782337831000,-153.0,0.00013593,2]
[426389106,1782337831000,-152.0,0.00013593,2]
[426389105,1782337831000,-150.0,0.00013593,2]
[426389110,1782337832000,-151.0,0.00013593,2]
[426389111,1782337832000,-153.0,0.00013593,2]
[426389113,1782337832000,-381.23189536,0.00013593,2]
[426389115,1782337832000,-500.0,0.00013593,2]
[426389116,1782337832000,-489.31685868,0.00013593,2]
[426389118,1782337832000,-150.0,0.00013594,2]
[426389119,1782337832000,-150.0,0.00013594,2]
[426389114,1782337832000,-19.88810464,0.00013593,2]
[426389112,1782337832000,-98.88,0.00013593,2]
[426389120,1782337832000,-153.0,0.00013594,2]
[426389121,1782337832000,-152.0,0.00013594,2]
[426389122,1782337832000,-316.0,0.00013594,2]
[426389124,1782337832000,-313.0,0.00013594,2]
[426389123,1782337832000,-152.0,0.00013594,2]
[426389125,1782337832000,-311.0,0.00013594,2]
[426389126,1782337832000,-318.0,0.00013594,2]
[426389117,1782337832000,-151.0,0.00013594,2]
[426389127,1782337832000,-34.61895366,0.00013594,2]
[426389171,1782337838000,-151.0,0.00013596,2]
[426389170,1782337838000,-417.98599454,0.00013596,2]
[426389164,1782337838000,-150.0,0.00013595,2]
[426389168,1782337838000,-500.0,0.00013596,2]
[426389172,1782337838000,-150.0,0.00013596,2]
[426389165,1782337838000,-151.0,0.00013595,2]
[426389167,1782337838000,-170.70998489,0.00013596,2]
[426389176,1782337838000,-151.0,0.00013596,2]
[426389175,1782337838000,-151.0,0.00013596,2]
[426389174,1782337838000,-152.0,0.00013596,2]
[426389177,1782337838000,-152.0,0.00013596,2]
[426389178,1782337838000,-150.0,0.00013596,2]
[426389180,1782337838000,-150.0,0.00013596,2]
[426389179,1782337838000,-151.0,0.00013596,2]
[426389182,1782337838000,-151.0,0.00013597,2]
[426389181,1782337838000,-152.0,0.00013596,2]
[426389166,1782337838000,-500.0,0.00013596,2]
[426389173,1782337838000,-151.0,0.00013596,2]
[426389161,1782337838000,-151.0,0.00013595,2]
[426389151,1782337838000,-150.0,0.00013594,2]
[426389162,1782337838000,-151.0,0.00013595,2]
[426389143,1782337838000,-116.38104634,0.00013594,2]
[426389142,1782337838000,-150.0,0.00013593,2]
[426389144,1782337838000,-283.61895366,0.00013594,2]
[426389145,1782337838000,-37.38104634,0.00013594,2]
[426389146,1782337838000,-313.0,0.00013594,2]
[426389147,1782337838000,-151.0,0.00013594,2]
[426389148,1782337838000,-139.64424651,0.00013594,2]
[426389150,1782337838000,-318.0,0.00013594,2]
[426389149,1782337838000,-174.35575349,0.00013594,2]
[426389184,1782337838000,-150.0,0.00013597,2]
[426389153,1782337838000,-151.0,0.00013595,2]
[426389154,1782337838000,-152.0,0.00013595,2]
[426389152,1782337838000,-151.0,0.00013595,2]
[426389155,1782337838000,-151.0,0.00013595,2]
[426389156,1782337838000,-151.0,0.00013595,2]
[426389157,1782337838000,-150.0,0.00013595,2]
[426389158,1782337838000,-151.0,0.00013595,2]
[426389160,1782337838000,-152.0,0.00013595,2]
[426389159,1782337838000,-151.0,0.00013595,2]
[426389163,1782337838000,-151.0,0.00013595,2]
[426389185,1782337838000,-152.0,0.00013597,2]
[426389169,1782337838000,-183.40199171,0.00013596,2]
[426389187,1782337838000,-152.0,0.00013597,2]
[426389212,1782337838000,-310.0,0.00013598,2]
[426389211,1782337838000,-314.0,0.00013598,2]
[426389209,1782337838000,-312.0,0.00013598,2]
[426389213,1782337838000,-313.0,0.00013598,2]
[426389214,1782337838000,-152.0,0.00013598,2]
[426389215,1782337838000,-312.0,0.00013598,2]
[426389217,1782337838000,-179.25748836,0.00013598,2]
[426389216,1782337838000,-316.0,0.00013598,2]
[426389208,1782337838000,-312.0,0.00013598,2]
[426389218,1782337838000,-151.0,0.00013598,2]
[426389219,1782337838000,-314.0,0.00013598,2]
[426389225,1782337838000,-152.0,0.00013598,2]
[426389222,1782337838000,-151.0,0.00013598,2]
[426389224,1782337838000,-151.0,0.00013598,2]
[426389223,1782337838000,-150.0,0.00013598,2]
[426389226,1782337838000,-216.42324807,0.00013611,2]
[426389227,1782337838000,-500.0,0.00013698,2]
[426389183,1782337838000,-151.0,0.00013597,2]
[426389220,1782337838000,-229.0,0.00013598,2]
[426389210,1782337838000,-151.0,0.00013598,2]
[426389221,1782337838000,-150.0,0.00013598,2]
[426389204,1782337838000,-318.0,0.00013598,2]
[426389188,1782337838000,-151.0,0.00013597,2]
[426389207,1782337838000,-151.0,0.00013598,2]
[426389186,1782337838000,-151.0,0.00013597,2]
[426389190,1782337838000,-152.0,0.00013597,2]
[426389189,1782337838000,-321.0,0.00013597,2]
[426389191,1782337838000,-150.0,0.00013597,2]
[426389194,1782337838000,-151.0,0.00013597,2]
[426389195,1782337838000,-151.0,0.00013597,2]
[426389197,1782337838000,-150.99,0.00013597,2]
[426389192,1782337838000,-153.0,0.00013597,2]
[426389193,1782337838000,-153.0,0.00013597,2]
[426389202,1782337838000,-320.0,0.00013598,2]
[426389196,1782337838000,-9999.99,0.00013597,2]
[426389199,1782337838000,-33326.4581,0.00013598,2]
[426389201,1782337838000,-2000.0,0.00013598,2]
[426389203,1782337838000,-151.0,0.00013598,2]
[426389200,1782337838000,-151.0,0.00013598,2]
[426389198,1782337838000,-299.99,0.00013597,2]
[426389205,1782337838000,-316.0,0.00013598,2]
[426389206,1782337838000,-314.0,0.00013598,2]
[426389268,1782337839000,-500.0,0.00016438,2]
[426389266,1782337839000,-500.0,0.00016438,2]
[426389272,1782337839000,-500.0,0.00016438,2]
[426389265,1782337839000,-640.78,0.00016438,2]
[426389259,1782337839000,-150.0,0.00015055,2]
[426389264,1782337839000,-433.0,0.00015919,2]
[426389262,1782337839000,-4766.43783174,0.00015585,2]
[426389257,1782337839000,-200.0,0.00014953,2]
[426389273,1782337839000,-500.0,0.00016438,2]
[426389261,1782337839000,-10000.0,0.00015572,2]
[426389263,1782337839000,-500.0,0.00015758,2]
[426389269,1782337839000,-500.0,0.00016438,2]
[426389280,1782337839000,-500.0,0.00016438,2]
[426389267,1782337839000,-500.0,0.00016438,2]
[426389270,1782337839000,-500.0,0.00016438,2]
[426389275,1782337839000,-500.0,0.00016438,2]
[426389274,1782337839000,-500.0,0.00016438,2]
[426389277,1782337839000,-500.0,0.00016438,2]
[426389278,1782337839000,-500.0,0.00016438,2]
[426389276,1782337839000,-500.0,0.00016438,2]
[426389279,1782337839000,-500.0,0.00016438,2]
[426389283,1782337839000,-500.0,0.00016438,2]
[426389281,1782337839000,-500.0,0.00016438,2]
[426389284,1782337839000,-500.0,0.00016438,2]
[426389255,1782337839000,-200.0,0.00014953,2]
[426389271,1782337839000,-500.0,0.00016438,2]
[426389260,1782337839000,-200.0,0.00015221,2]
[426389231,1782337839000,-754.880786,0.00014,2]
[426389256,1782337839000,-200.0,0.00014953,2]
[426389282,1782337839000,-500.0,0.00016438,2]
[426389229,1782337839000,-500.0,0.00013698,2]
[426389228,1782337839000,-500.0,0.00013698,2]
[426389230,1782337839000,-513.63,0.00013698,2]
[426389233,1782337839000,-221.0,0.00014279,2]
[426389232,1782337839000,-150.0,0.00014139,2]
[426389234,1782337839000,-1030.19,0.00014576,2]
[426389238,1782337839000,-160.92,0.00014889,2]
[426389236,1782337839000,-255.0,0.00014709,2]
[426389235,1782337839000,-172.11,0.00014606,2]
[426389237,1782337839000,-223.86,0.00014779,2]
[426389239,1782337839000,-256.10668052,0.00014952,2]
[426389258,1782337839000,-200.0,0.00015001,2]
[426389241,1782337839000,-332.87186526,0.00014952,2]
[426389242,1782337839000,-261.22672262,0.00014952,2]
[426389243,1782337839000,-600.0,0.00014953,2]
[426389244,1782337839000,-600.0,0.00014953,2]
[426389245,1782337839000,-600.0,0.00014953,2]
[426389249,1782337839000,-300.0,0.00014953,2]
[426389248,1782337839000,-300.0,0.00014953,2]
[426389246,1782337839000,-600.0,0.00014953,2]
[426389250,1782337839000,-300.0,0.00014953,2]
[426389247,1782337839000,-600.0,0.00014953,2]
[426389251,1782337839000,-300.0,0.00014953,2]
[426389253,1782337839000,-200.0,0.00014953,2]
[426389254,1782337839000,-200.0,0.00014953,2]
[426389240,1782337839000,-300.0,0.00014952,2]
[426389285,1782337839000,-500.0,0.00016438,2]
[426389252,1782337839000,-300.0,0.00014953,2]
[426389287,1782337839000,-500.0,0.00016438,2]
[426389322,1782337839000,-500.0,0.00016438,2]
[426389346,1782337839000,-500.0,0.00017303,2]
[426389320,1782337839000,-500.0,0.00016438,2]
[426389317,1782337839000,-500.0,0.00016438,2]
[426389324,1782337839000,-500.0,0.00016438,2]
[426389326,1782337839000,-500.0,0.00016438,2]
[426389327,1782337839000,-500.0,0.00016438,2]
[426389329,1782337839000,-500.0,0.00016438,2]
[426389328,1782337839000,-500.0,0.00016438,2]
[426389331,1782337839000,-500.0,0.00016538,2]
[426389330,1782337839000,-500.0,0.00016438,2]
[426389332,1782337839000,-151.8,0.00016712,2]
[426389318,1782337839000,-500.0,0.00016438,2]
[426389333,1782337839000,-200.0,0.000168,6]
[426389334,1782337839000,-400.0,0.000169,6]
[426389335,1782337839000,-438.8023161,0.0001699,2]
[426389337,1782337839000,-2500.0,0.00017204,2]
[426389338,1782337839000,-736.0,0.00017224,2]
[426389339,1782337839000,-263.88417859,0.00017294,2]
[426389340,1782337839000,-405.25059492,0.000173,2]
[426389341,1782337839000,-371.58788372,0.000173,2]
[426389344,1782337839000,-150.0,0.00017303,2]
[426389342,1782337839000,-164.90866995,0.000173,2]
[426389343,1782337839000,-1131.34001778,0.00017303,5]
[426389345,1782337839000,-500.0,0.00017303,2]
[426389348,1782337839000,-38310.76591833,0.00017304,2]
[426389336,1782337839000,-150.02,0.0001705,2]
[426389316,1782337839000,-500.0,0.00016438,2]
[426389286,1782337839000,-500.0,0.00016438,2]
[426389314,1782337839000,-234.52149053,0.00016438,2]
[426389288,1782337839000,-600.0,0.00016438,2]
[426389289,1782337839000,-500.0,0.00016438,2]
[426389293,1782337839000,-500.0,0.00016438,2]
[426389291,1782337839000,-500.0,0.00016438,2]
[426389292,1782337839000,-500.0,0.00016438,2]
[426389294,1782337839000,-500.0,0.00016438,2]
[426389295,1782337839000,-500.0,0.00016438,2]
[426389296,1782337839000,-500.0,0.00016438,2]
[426389290,1782337839000,-500.0,0.00016438,2]
[426389297,1782337839000,-500.0,0.00016438,2]
[426389298,1782337839000,-500.0,0.00016438,2]
[426389299,1782337839000,-500.0,0.00016438,2]
[426389301,1782337839000,-500.0,0.00016438,2]
[426389313,1782337839000,-500.0,0.00016438,2]
[426389302,1782337839000,-500.0,0.00016438,2]
[426389312,1782337839000,-500.0,0.00016438,2]
[426389311,1782337839000,-500.0,0.00016438,2]
[426389310,1782337839000,-500.0,0.00016438,2]
[426389309,1782337839000,-500.0,0.00016438,2]
[426389305,1782337839000,-500.0,0.00016438,2]
[426389315,1782337839000,-500.0,0.00016438,2]
[426389306,1782337839000,-500.0,0.00016438,2]
[426389308,1782337839000,-500.0,0.00016438,2]
[426389303,1782337839000,-500.0,0.00016438,2]
[426389304,1782337839000,-500.0,0.00016438,2]
[426389307,1782337839000,-500.0,0.00016438,2]
[426389300,1782337839000,-500.0,0.00016438,2]
[426389368,1782337840000,-702.73525004,0.00017304,2]
[426389364,1782337840000,-293.98000534,0.00017304,2]
[426389361,1782337840000,-4998.96332019,0.00017304,2]
[426389358,1782337840000,-4389.04305849,0.00017304,2]
[426389356,1782337840000,-582.14538574,0.00017304,2]
[426389357,1782337840000,-315.0,0.00017304,2]
[426389394,1782337841000,-616126.41265861,0.00017304,2]
[426389376,1782337841000,-2691.88222366,0.00017304,2]
[426389534,1782337843000,-1105.799808,0.00017304,2]
[426389533,1782337843000,-478.41803999,0.00017304,2]
[426389536,1782337843000,-944.22908815,0.00017304,2]
[426389538,1782337843000,-765.98205054,0.00017304,2]
[426389537,1782337843000,-12604.25423854,0.00017304,2]
[426389535,1782337843000,-19618.77052784,0.00017304,2]
[426389548,1782337846000,-3695.05948796,0.00017304,2]
[426389547,1782337846000,-84671.77368257,0.00017304,2]
[426389546,1782337846000,-223962.89260837,0.00017304,2]
[426389545,1782337846000,-861.929803,0.00017304,2]
[426389544,1782337846000,-151.0,0.00016438,2]
[426389543,1782337846000,-188.710197,0.00014,2]
[426389554,1782337855000,384.28,0.00031264,30]
[426389556,1782337877000,287.935464,0.0003113,45]
[426389557,1782337886000,438.8,0.00030432,30]
[426389558,1782337891000,395.68,0.00030486,30]
[426389559,1782337895000,353.66,0.00030579,30]
[426389562,1782337898000,675.38,0.00037397,30]
[426389561,1782337898000,675.38,0.00037397,30]
[426389560,1782337898000,675.38,0.00037397,30]
[426389565,1782337899000,675.38,0.00037397,30]
[426389564,1782337899000,675.38,0.00037397,30]
[426389563,1782337899000,675.38,0.00037397,30]
[426389566,1782337900000,675.38,0.00037397,30]
[426389567,1782337900000,675.38,0.00037397,30]
[426389568,1782337900000,675.38,0.00037397,30]
[426389572,1782337901000,675.38,0.00037397,30]
[426389571,1782337901000,5223.7,0.00029977,30]
[426389570,1782337901000,675.38,0.00037397,30]
[426389569,1782337901000,675.38,0.00037397,30]
[426389573,1782337902000,675.38,0.00037397,30]
[426389574,1782337902000,5223.7,0.00031088,30]
[426389576,1782337902000,675.38,0.00037397,30]
[426389577,1782337902000,675.38,0.00037397,30]
[426389575,1782337902000,675.38,0.00037397,30]
[426389580,1782337903000,675.38,0.00037397,30]
[426389579,1782337903000,675.38,0.00037397,30]
[426389578,1782337903000,675.38,0.00037397,30]
[426389581,1782337903000,675.38,0.00037397,30]
[426389584,1782337904000,675.38,0.00037397,30]
[426389583,1782337904000,675.38,0.00037397,30]
[426389582,1782337904000,675.38,0.00037397,30]
[426389585,1782337905000,675.43351791,0.00037397,30]
[426389586,1782337908000,289.14,0.00031207,30]
[426389587,1782337919000,377.13,0.00030546,30]
[426389588,1782337919000,336.86,0.00030638,30]
[426389589,1782337919000,418.25,0.00030493,30]
[426389590,1782337932000,286.19,0.00031259,30]
[426389591,1782337935000,398.08,0.00030552,30]
[426389593,1782337936000,359.38,0.00030605,30]
[426389592,1782337936000,321.12,0.00030696,30]
[426389594,1782337970000,1108.0,0.00037397,30]
[426389596,1782337971000,1128.0,0.00037397,30]
[426389595,1782337971000,195.13103254,0.00037397,30]
[426389597,1782337982000,3000.000079,0.00037398,120]
[426389598,1782338004000,377.22,0.00030611,30]
[426389599,1782338006000,283.15,0.00031311,30]
[426389601,1782338013000,340.49,0.00030663,30]
[426389602,1782338014000,304.31,0.00030753,30]
[426389603,1782338019000,14692.0,0.00037398,30]
[426389604,1782338026000,63502.96445815,0.00037398,30]
[426389605,1782338028000,718528.77351757,0.00037398,30]
[426389606,1782338041000,38739.76329533,0.00037398,30]
[426389607,1782338042000,40935.11181467,0.000274,30]
[426389609,1782338050000,75724.41934872,0.00037398,30]
[426389610,1782338051000,195.0,0.00028699,30]
[426389611,1782338052000,195.0,0.00029699,30]
[426389612,1782338054000,195.0,0.00030699,30]
[426389613,1782338061000,4060.30790387,0.00037398,120]
[426389614,1782338070000,12897.18942872,0.00037398,61]
[426389615,1782338075000,357.97,0.00030669,30]
[426389616,1782338080000,821.29010056,8e-05,2]
[426389620,1782338081000,926.51793861,0.00037398,30]
[426389631,1782338085000,322.95,0.00030721,30]
[426389632,1782338089000,288.57,0.0003081,30]
[426389633,1782338090000,1020.0,0.00031,30]
[426389634,1782338093000,279.84,0.00031361,30]
[426389635,1782338102000,2205.22700747,0.00037398,30]
[426389636,1782338103000,1002.0,0.00037398,120]
[426389637,1782338107000,241.0,0.00028699,30]
[426389638,1782338108000,241.0,0.00029699,30]
[426389639,1782338109000,241.0,0.00030699,30]
[426389640,1782338110000,500.0,0.00028657,120]
[426389641,1782338111000,500.0,0.00029119,120]
[426389642,1782338111000,500.0,0.00029119,120]
[426389643,1782338113000,2208.63922492,0.00031391,30]
[426389644,1782338113000,180.16152266,0.00029,120]
[426389646,1782338122000,185.08,0.00030411,120]
[426389647,1782338124000,1410.64051776,0.00037398,30]
[426389649,1782338153000,500.0,0.00028499,120]
[426389648,1782338153000,340.23,0.00030726,30]
[426389650,1782338162000,307.01,0.00030778,30]
[426389651,1782338164000,274.31,0.00030865,30]
[426389652,1782338176000,276.71,0.00031411,30]
[426389653,1782338177000,17948050.92433908,0.00037398,30]
[426389655,1782338204000,500.0,0.00030136,30]
[426389656,1782338205000,484.37821517,0.00030136,30]
[426389657,1782338209000,662.0,0.00028699,30]
[426389658,1782338211000,662.0,0.00029699,30]
[426389660,1782338212000,662.0,0.00030699,30]
[426389659,1782338212000,498.0,0.00030136,120]
[426389661,1782338228000,323.09,0.00030717,30]
[426389662,1782338229000,323.09,0.0003098,30]
[426389665,1782338238000,260.56,0.00030855,30]
[426389664,1782338238000,291.59,0.00031013,30]
[426389663,1782338238000,291.59,0.00030767,30]
[426389666,1782338239000,260.56,0.00031072,30]
[426389677,1782338253000,273.69,0.00030829,30]
[426389680,1782338254000,861.0,0.00028699,30]
[426389679,1782338254000,273.69,0.00030829,30]
[426389682,1782338255000,273.69,0.00030829,30]
[426389685,1782338256000,273.69,0.00030829,30]
[426389684,1782338256000,861.0,0.00029699,30]
[426389687,1782338257000,273.69,0.00030829,30]
[426389686,1782338257000,861.0,0.00030699,30]
[426389688,1782338258000,247.28,0.00030843,30]
[426389689,1782338258000,273.69,0.00030829,30]
[426389692,1782338259000,247.28,0.00031064,30]
[426389696,1782338264000,150.0,0.000297,30]
[426389697,1782338265000,325.47,0.000312,30]
[426389698,1782338266000,276.72,0.00030758,30]
[426389700,1782338267000,296798.6754051,0.00025,30]
[426389699,1782338267000,276.72,0.00031007,30]
[426389701,1782338268000,500.0,0.00030136,120]
[426389704,1782338269000,500.0,0.00030136,120]
[426389703,1782338269000,500.0,0.00030136,120]
[426389702,1782338269000,500.0,0.00030136,120]
[426389707,1782338270000,500.0,0.00030136,120]
[426389706,1782338270000,500.0,0.00030136,120]
[426389705,1782338270000,500.0,0.00030136,120]
[426389708,1782338271000,500.0,0.00030136,120]
[426389710,1782338272000,629.67779221,0.00030136,120]
[426389709,1782338272000,500.0,0.00030136,120]
[426389714,1782338287000,517.84,0.00029119,120]
[426389713,1782338287000,517.84,0.00029119,120]
[426389712,1782338287000,517.84,0.00029119,120]
[426389711,1782338287000,517.84,0.00028657,120]
[426389717,1782338288000,517.84,0.00030079,120]
[426389716,1782338288000,517.84,0.00029899,120]
[426389715,1782338288000,150.0,0.00027397,30]
[426389718,1782338289000,517.84,0.00030079,120]
[426389722,1782338290000,517.84,0.00031039,120]
[426389721,1782338290000,517.84,0.00031039,120]
[426389720,1782338290000,517.84,0.00030135,120]
[426389719,1782338290000,517.84,0.00030079,120]
[426389724,1782338291000,517.84,0.00031039,120]
[426389725,1782338291000,517.84,0.00031039,120]
[426389723,1782338291000,1001.0,0.00030493,120]
[426389728,1782338292000,306.66,0.00030708,30]
[426389729,1782338292000,518.04,0.00031039,120]
[426389727,1782338292000,517.84,0.00031039,120]
[426389726,1782338292000,517.84,0.00031039,120]
[426389730,1782338293000,306.66,0.00030974,30]
[426389731,1782338309000,151.0,0.00028699,30]
[426389732,1782338310000,151.0,0.00029699,30]
[426389733,1782338311000,151.0,0.00030699,30]
[426389736,1782338314000,622.48,0.00028657,120]
[426389734,1782338314000,260.53,0.00030699,30]
[426389735,1782338314000,210.07,0.00030833,30]
[426389737,1782338315000,210.07,0.00031057,30]
[426389738,1782338315000,260.53,0.00030968,30]
[426389741,1782338315000,622.48,0.00029119,120]
[426389740,1782338315000,622.48,0.00029119,120]
[426389739,1782338315000,622.48,0.00029119,120]
[426389744,1782338316000,622.48,0.00030079,120]
[426389743,1782338316000,622.48,0.00030079,120]
[426389742,1782338316000,622.48,0.00029899,120]
[426389745,1782338317000,622.48,0.00030079,120]
[426389748,1782338317000,622.48,0.00031039,120]
[426389747,1782338317000,622.48,0.00031039,120]
[426389746,1782338317000,622.48,0.00030135,120]
[426389751,1782338318000,622.48,0.00031039,120]
[426389750,1782338318000,622.48,0.00031039,120]
[426389749,1782338318000,622.48,0.00031039,120]
[426389752,1782338318000,622.48,0.00031039,120]
[426389753,1782338319000,622.5,0.00031039,120]
[426389760,1782338322000,235.09,0.00030747,30]
[426389761,1782338323000,235.09,0.00031,30]
[426389769,1782338326000,270.62,0.00030818,30]
[426389773,1782338327000,270.62,0.00030818,30]
[426389778,1782338328000,270.62,0.00030818,30]
[426389777,1782338328000,270.62,0.00030818,30]
[426389782,1782338329000,270.62,0.00030818,30]
[426389783,1782338330000,270.62,0.00030818,30]
[426389784,1782338332000,405.93,0.00025378,30]
[426389786,1782338338000,212.21,0.00030738,30]
[426389787,1782338339000,212.21,0.00030994,30]
[426389789,1782338346000,235.16,0.00030689,30]
[426389788,1782338346000,189.62,0.00030822,30]
[426389791,1782338347000,235.16,0.00030961,30]
[426389790,1782338347000,189.62,0.0003105,30]
[426389793,1782338352000,151.0,0.00028699,30]
[426389794,1782338353000,165.64794187,0.00031391,30]
[426389795,1782338354000,151.0,0.00029699,30]
[426389796,1782338355000,151.0,0.00030699,30]
[426389797,1782338357000,232.16,0.00030808,30]
[426389798,1782338358000,232.16,0.00030808,30]
[426389799,1782338359000,232.16,0.00030808,30]
[426389800,1782338360000,232.16,0.00030808,30]
[426389801,1782338361000,232.16,0.00030808,30]
[426389802,1782338362000,232.16,0.00030808,30]
[426389803,1782338363000,348.24,0.00025378,30]
[426389804,1782338383000,207.73404402,0.00028657,120]
[426389805,1782338396000,405.0,0.00028699,30]
[426389806,1782338397000,405.0,0.00029699,30]
[426389807,1782338398000,405.0,0.00030699,30]
[426389808,1782338404000,195.58,0.00031486,30]
[426389809,1782338405000,195.58,0.00031492,30]
[426389811,1782338422000,216.73,0.00030681,30]
[426389810,1782338422000,174.76,0.00030812,30]
[426389813,1782338423000,216.73,0.00030956,30]
[426389812,1782338423000,174.76,0.00031043,30]
[426389815,1782338434000,206.16,0.00030798,30]
[426389814,1782338434000,206.16,0.00030798,30]
[426389816,1782338435000,206.16,0.00030798,30]
[426389817,1782338436000,206.16,0.00030798,30]
[426389818,1782338437000,206.16,0.00030798,30]
[426389820,1782338438000,153.0,0.00028699,30]
[426389819,1782338438000,206.16,0.00030798,30]
[426389821,1782338439000,153.0,0.00029699,30]
[426389822,1782338440000,309.25,0.00025378,30]
[426389823,1782338441000,153.0,0.00030699,30]
[426389824,1782338445000,4353.09,0.00031122,30]
[426389825,1782338451000,150.0,0.000311,30]
[426389826,1782338467000,500.0,0.00028657,120]
[426389830,1782338468000,500.0,0.00029899,120]
[426389829,1782338468000,500.0,0.00029119,120]
[426389828,1782338468000,500.0,0.00029119,120]
[426389827,1782338468000,500.0,0.00029119,120]
[426389832,1782338469000,500.0,0.00030079,120]
[426389831,1782338469000,500.0,0.00030079,120]
[426389833,1782338470000,500.0,0.00030079,120]
[426389834,1782338472000,172.26,0.00031468,30]
[426389835,1782338473000,172.26,0.0003148,30]
[426389836,1782338476000,154.0,0.00028699,30]
[426389837,1782338477000,154.0,0.00029699,30]
[426389838,1782338479000,154.0,0.00030699,30]
[426389839,1782338495000,190.9,0.00030672,30]
[426389840,1782338496000,190.9,0.0003095,30]
[426389841,1782338498000,153.93,0.00030801,30]
[426389842,1782338499000,153.93,0.00031036,30]
[426389843,1782338505000,500.0,0.00028657,120]
[426389847,1782338506000,500.0,0.00029899,120]
[426389846,1782338506000,500.0,0.00029119,120]